fUST/lending_fUST_20260111
["ID","MTS","AMOUNT","RATE_DAILY","PERIOD"]
[401329759,1768140650305,-390.03059732,0.00032295,5]
[401329760,1768140650314,-2230.315306,0.00032295,5]
[401329761,1768140650323,-553.64373807,0.00032295,5]
[401329762,1768140650333,-2312.83697232,0.00032295,5]
[401329763,1768140650343,-574.12855637,0.00032295,5]
[401329764,1768140650353,-2398.4119403,0.00032295,5]
[401329765,1768140650363,-595.37131296,0.00032295,5]
[401329766,1768140650372,-2487.15318209,0.00032295,5]
[401329767,1768140650383,-617.40005154,0.00032295,5]
[401329768,1768140650395,-2579.17784983,0.00032295,5]
[401329769,1768140650404,-760.8076711,0.00032295,5]
[401329770,1768140650414,-151.0,0.00032295,5]
[401329771,1768140650423,-256.83787609,0.00032295,5]
[401329772,1768140650432,-151.0,0.00032295,5]
[401329773,1768140650443,-250.0,0.00032295,5]
[401329774,1768140650453,-151.0,0.00032295,5]
[401329775,1768140650462,-151.0,0.00032295,5]
[401329776,1768140650473,-151.0,0.00032295,5]
[401329777,1768140650483,-151.0,0.00032295,5]
[401329778,1768140650494,-151.0,0.00032295,5]
[401329779,1768140650504,-151.0,0.00032295,5]
[401329780,1768140650512,-151.0,0.00032295,5]
[401329781,1768140650522,-151.0,0.00032295,5]
[401329782,1768140650532,-151.0,0.00032295,5]
[401329783,1768140650542,-151.0,0.00032295,5]
[401329784,1768140650552,-151.0,0.00032295,5]
[401329785,1768140650561,-151.0,0.00032295,5]
[401329786,1768140650571,-151.0,0.00032295,5]
[401329787,1768140650581,-151.0,0.00032295,5]
[401329788,1768140650591,-151.0,0.00032295,5]
[401329789,1768140650600,-250.0,0.00032295,5]
[401329790,1768140650610,-151.0,0.00032295,5]
[401329791,1768140650620,-271.40103972,0.00032295,5]
[401329792,1768140650630,-151.0,0.00032295,5]
[401329793,1768140650640,-154.07167593,0.00032295,5]
[401329794,1768140650649,-526.6,0.00032299,5]
[401329795,1768140650657,-2600.19116857,0.00032314,2]
[401329796,1768140650666,-5000.0,0.0003237,2]
[401329797,1768140650675,-151.0,0.0003237,31]
[401329798,1768140650684,-2171.0,0.000324,120]
[401329799,1768140650694,-2600.19116857,0.00032426,2]
[401329800,1768140650703,-10455.7051055,0.00032452,2]
[401329801,1768140650713,-28613.6072288,0.00032452,2]
[401329802,1768140650722,-264.224,0.00032452,31]
[401329803,1768140650732,-264.224,0.00032452,31]
[401329804,1768140650741,-264.224,0.00032452,31]
[401329805,1768140650752,-264.224,0.00032452,31]
[401329806,1768140650761,-781.4959678,0.00032452,2]
[401329807,1768140650771,-2344.4879037,0.00032452,2]
[401329808,1768140650781,-2753.5080879,0.00032452,2]
[401329809,1768140650791,-6906.65156916,0.000325,7]
[401329810,1768140650800,-2549.19910536,0.000325,7]
[401329811,1768140650810,-1083.40961978,0.00032515,2]
[401329812,1768140650910,-331.27294589,0.00032524,2]
[401329813,1768140650920,-1325.09178357,0.00032524,2]
[401329814,1768140650931,-2981.45651302,0.00032524,2]
[401329815,1768140650940,-5300.36713426,0.00032524,2]
[401329816,1768140650949,-302.40318512,0.00032524,2]
[401329817,1768140650959,-1209.61274048,0.00032524,2]
[401329818,1768140650968,-2721.62866607,0.00032524,2]
[401329819,1768140650978,-4838.45096191,0.00032524,2]
[401329820,1768140650987,-7560.07962799,0.00032524,2]
[401329821,1768140650996,-3176.86810454,0.0003257,2]
[401329822,1768140651005,-862.0,0.00032572,30]
[401329823,1768140651014,-817.0,0.00032572,30]
[401329824,1768140651023,-734.0,0.00032572,30]
[401329825,1768140651033,-155.5739919,0.00032583,10]
[401329826,1768140651043,-932.46362,0.000326,10]
[401329827,1768140651052,-194.0180722,0.00032603,30]
[401329828,1768140651061,-194.0180722,0.00032603,30]
[401329829,1768140651070,-194.0180722,0.00032603,30]
[401329830,1768140651080,-151.61039102,0.0003267,14]
[401329831,1768140651089,-1255449.85058398,0.0003267,2]
[401329832,1768140651352,-891.55686557,0.0003267,2]
[401329833,1768140651363,-900.0,0.0003267,2]
[401329834,1768140651375,-1131.63761844,0.0003267,2]
[401329835,1768140651436,-272.83182917,0.0003267,2]
[401329836,1768140651454,-1411.95357189,0.0003267,2]
[401329837,1768140651465,-917.92572229,0.0003267,2]
[401329838,1768140651476,-1437.1938843,0.0003267,2]
[401329839,1768140727912,166.85,8.017e-05,2]
[401329840,1768140733786,194.65,8.325e-05,2]
[401329860,1768140752163,-222.46,8.634e-05,2]
[401329880,1768140872479,163.0,8.346e-05,2]
[401329881,1768140903287,-183.38,8.644e-05,2]
[401329884,1768141024495,300.2587553,8.289e-05,2]
[401329905,1768141110469,1000.0,0.00030137,120]
[401329907,1768141204310,176.49,5e-05,2]
[401329908,1768141204953,176.49,5.5e-05,2]
[401329909,1768141205527,176.49,6e-05,2]
[401329910,1768141206095,176.49,6.5e-05,2]
[401329911,1768141206700,176.49,7.1e-05,2]
[401329912,1768141207191,176.49,7.6e-05,2]
[401329913,1768141207675,176.49,8.1e-05,2]
[401329914,1768141208239,176.49,8.6e-05,2]
[401329915,1768141234648,176.31,5e-05,2]
[401329926,1768141805141,165.9,5e-05,2]
[401329927,1768141810722,165.88,5e-05,2]
[401329936,1768141831759,-251.24833595,9.066e-05,2]
[401329937,1768141831771,-266.36136461,9.066e-05,2]
[401329938,1768141831794,-280.63863539,9.066e-05,2]
[401329939,1768141831804,-300.0,9.087e-05,2]
[401329940,1768141831814,-97.44483413,9.088e-05,2]
[401329941,1768141831825,-71.01458247,9.088e-05,2]
[401329942,1768141831834,-500.0,9.088e-05,2]
[401329943,1768141831844,-500.0,9.088e-05,2]
[401329944,1768141831857,-500.0,9.088e-05,2]
[401329945,1768141831867,-175.22185005,9.088e-05,2]
[401329946,1768141831879,-324.77814995,9.088e-05,2]
[401329947,1768141831888,-500.0,9.088e-05,2]
[401329948,1768141831898,-500.0,9.088e-05,2]
[401329949,1768141831907,-500.0,9.088e-05,2]
[401329950,1768141831917,-500.0,9.088e-05,2]
[401329951,1768141831926,-500.0,9.088e-05,2]
[401329952,1768141831935,-500.0,9.088e-05,2]
[401329953,1768141831945,-500.0,9.088e-05,2]
[401329954,1768141831956,-500.0,9.088e-05,2]
[401329955,1768141831966,-500.0,9.088e-05,2]
[401329956,1768141831976,-500.0,9.088e-05,2]
[401329957,1768141831986,-527.97013448,9.088e-05,2]
[401329958,1768141831996,-500.0,9.088e-05,2]
[401329959,1768141832006,-634.01008032,9.088e-05,2]
[401329960,1768141832016,-500.0,9.088e-05,2]
[401329961,1768141832026,-500.0,9.088e-05,2]
[401329962,1768141832036,-500.0,9.088e-05,2]
[401329963,1768141832045,-536.9296582,9.088e-05,2]
[401329964,1768141832055,-500.0,9.088e-05,2]
[401329965,1768141832064,-500.0,9.088e-05,2]
[401329966,1768141832074,-232.16355576,9.088e-05,2]
[401329967,1768141832083,-500.0,9.088e-05,2]
[401329968,1768141832093,-500.0,9.088e-05,2]
[401329969,1768141832103,-500.0,9.088e-05,2]
[401329970,1768141832113,-500.0,9.088e-05,2]
[401329971,1768141832122,-500.0,9.088e-05,2]
[401329972,1768141832132,-324.95846367,9.088e-05,2]
[401329973,1768141832143,-500.0,9.088e-05,2]
[401329974,1768141832152,-500.0,9.088e-05,2]
[401329975,1768141832162,-500.0,9.088e-05,2]
[401329976,1768141832171,-500.0,9.088e-05,2]
[401329977,1768141832181,-500.0,9.088e-05,2]
[401329978,1768141832190,-500.96949553,9.088e-05,2]
[401329979,1768141832200,-500.0,9.088e-05,2]
[401329980,1768141832210,-300.0,9.088e-05,2]
[401329981,1768141832219,-683.74789205,9.089e-05,2]
[401330020,1768141837843,-2829.92790603,9.089e-05,2]
[401330021,1768141837858,-750.0,9.089e-05,2]
[401330022,1768141837903,-2084.87083648,9.089e-05,2]
[401330023,1768141837915,-993651.45336544,9.089e-05,2]
[401330024,1768141837927,-176.49,9.1e-05,2]
[401330025,1768141837936,-50000.0,9.189e-05,2]
[401330026,1768141837946,-500.0,9.374e-05,2]
[401330027,1768141837956,-300.0,9.374e-05,2]
[401330028,1768141837965,-300.0,9.374e-05,2]
[401330030,1768141837974,-300.0,9.374e-05,2]
[401330032,1768141837984,-300.0,9.374e-05,2]
[401330034,1768141837993,-300.0,9.374e-05,2]
[401330035,1768141838002,-300.0,9.374e-05,2]
[401330036,1768141838012,-300.0,9.374e-05,2]
[401330037,1768141838022,-300.0,9.374e-05,2]
[401330038,1768141838032,-300.0,9.374e-05,2]
[401330039,1768141838041,-300.0,9.374e-05,2]
[401330040,1768141838051,-300.0,9.374e-05,2]
[401330041,1768141838061,-300.0,9.374e-05,2]
[401330042,1768141838070,-300.0,9.374e-05,2]
[401330043,1768141838080,-300.0,9.374e-05,2]
[401330044,1768141838091,-300.0,9.374e-05,2]
[401330045,1768141838101,-600.0,9.374e-05,2]
[401330046,1768141838111,-3176.86810458,9.374e-05,2]
[401330047,1768141838121,-500.0,9.4e-05,2]
[401330048,1768141838131,-176.49,9.6e-05,2]
[401330049,1768141838141,-500.0,9.648e-05,2]
[401330050,1768141838151,-500.0,9.922e-05,2]
[401330051,1768141838161,-420.0,9.996e-05,2]
[401330052,1768141838170,-2056.47402113,0.0001,2]
[401330053,1768141838180,-532.21930964,0.0001,2]
[401330054,1768141838190,-165.9,0.0001,2]
[401330055,1768141838199,-176.49,0.000101,2]
[401330056,1768141838209,-500.0,0.00010196,2]
[401330057,1768141838218,-720.0,0.00010311,2]
[401330058,1768141838227,-35031.35822342,0.00010356,2]
[401330059,1768141838236,-500.0,0.0001047,2]
[401330060,1768141838245,-176.49,0.000106,2]
[401330061,1768141838255,-500.0,0.00010744,2]
[401330062,1768141838265,-587.0,0.00010995,2]
[401330063,1768141838275,-151.0,0.00011,2]
[401330064,1768141838285,-1000.0,0.00011,2]
[401330065,1768141838295,-151.0,0.00011,2]
[401330066,1768141838305,-151.0,0.00011,2]
[401330067,1768141838315,-500.0,0.00011018,2]
[401330068,1768141838325,-296.47303643,0.00011066,2]
[401330069,1768141838336,-176.49,0.000112,2]
[401330070,1768141838345,-500.0,0.00011292,2]
[401330071,1768141838355,-864.0,0.00011342,2]
[401330072,1768141838365,-500.0,0.00011566,2]
[401330073,1768141838375,-500.0,0.00011632,2]
[401330074,1768141838385,-500.0,0.00011632,2]
[401330075,1768141838396,-500.0,0.00011632,2]
[401330076,1768141838406,-500.0,0.00011632,2]
[401330077,1768141838415,-500.0,0.00011632,2]
[401330078,1768141838425,-154.30171575,0.00011632,2]
[401330079,1768141838434,-500.0,0.00011632,2]
[401330080,1768141838444,-2309.0,0.00011632,2]
[401330081,1768141838453,-176.49,0.000117,2]
[401330082,1768141838462,-500.0,0.00011769,2]
[401330083,1768141838472,-500.0,0.00011769,2]
[401330084,1768141838481,-500.0,0.00011769,2]
[401330085,1768141838491,-500.0,0.00011769,2]
[401330086,1768141838500,-500.0,0.00011769,2]
[401330087,1768141838509,-201.95802809,0.00011769,2]
[401330088,1768141838518,-500.0,0.00011769,2]
[401330089,1768141838528,-2309.0,0.00011769,2]
[401330090,1768141838538,-187.35985221,0.00011769,2]
[401330091,1768141838547,-500.0,0.0001184,2]
[401330092,1768141838556,-223.56062369,0.00011906,2]
[401330093,1768141838565,-500.0,0.00011906,2]
[401330094,1768141838576,-500.0,0.00011906,2]
[401330095,1768141838585,-500.0,0.00011906,2]
[401330096,1768141838595,-500.0,0.00011906,2]
[401330097,1768141838604,-500.0,0.00011906,2]
[401330098,1768141838613,-163.14839871,0.00011906,2]
[401330099,1768141838623,-2309.0,0.00011906,2]
[401330100,1768141838632,-250.0,0.00011979,2]
[401330101,1768141838641,-2000.0,0.00012,2]
[401330102,1768141838650,-300.0,0.00012043,2]
[401330103,1768141838659,-500.0,0.00012043,2]
[401330104,1768141838668,-500.0,0.00012043,2]
[401330105,1768141838677,-250.0,0.00012043,2]
[401330106,1768141838687,-500.0,0.00012043,2]
[401330107,1768141838696,-2309.0,0.00012043,2]
[401330108,1768141838706,-823.0,0.00012095,2]
[401330109,1768141838715,-448.52259365,0.00012114,2]
[401330110,1768141838724,-500.00000003,0.0001218,2]
[401330111,1768141838734,-500.0,0.0001218,2]
[401330112,1768141838744,-500.0,0.0001218,2]
[401330113,1768141838754,-2309.0,0.0001218,2]
[401330114,1768141838764,-176.49,0.000122,2]
[401330115,1768141838773,-500.0,0.00012317,2]
[401330116,1768141838783,-500.0,0.00012317,2]
[401330117,1768141838793,-2309.0,0.00012317,2]
[401330118,1768141838801,-952.84,0.00012329,2]
[401330119,1768141838809,-1273.83,0.00012329,2]
[401330120,1768141838818,-1061.52,0.00012329,2]
[401330121,1768141838829,-884.6,0.00012329,2]
[401330122,1768141838838,-737.17,0.00012329,2]
[401330123,1768141838847,-614.31,0.00012329,2]
[401330124,1768141838862,-511.92,0.00012329,2]
[401330125,1768141838871,-426.6,0.00012329,2]
[401330126,1768141838881,-355.5,0.00012329,2]
[401330127,1768141838890,-296.25,0.00012329,2]
[401330128,1768141838901,-246.88,0.00012329,2]
[401330129,1768141838913,-205.73,0.00012329,2]
[401330130,1768141838923,-171.44,0.00012329,2]
[401330131,1768141838932,-171.44,0.00012329,2]
[401330132,1768141838942,-685.8,0.00012329,2]
[401330133,1768141838952,-303.76,0.00012329,2]
[401330134,1768141838962,-587.08824565,0.00012329,2]
[401330135,1768141838972,-587.08824565,0.00012329,2]
[401330136,1768141838981,-587.08824565,0.00012329,2]
[401330137,1768141838992,-587.08824565,0.00012329,2]
[401330138,1768141839117,-587.08824565,0.00012329,2]
[401330139,1768141839127,-587.08824565,0.00012329,2]
[401330140,1768141839137,-587.08824565,0.00012329,2]
[401330141,1768141839146,-587.08824565,0.00012329,2]
[401330142,1768141839156,-587.08824565,0.00012329,2]
[401330143,1768141839165,-587.08824565,0.00012329,2]
[401330144,1768141839175,-587.08824565,0.00012329,2]
[401330145,1768141839184,-587.08824565,0.00012329,2]
[401330146,1768141839194,-587.08824565,0.00012329,2]
[401330147,1768141839203,-587.08824565,0.00012329,2]
[401330148,1768141839213,-587.08824565,0.00012329,2]
[401330149,1768141839223,-587.08824565,0.00012329,2]
[401330150,1768141839233,-587.08824565,0.00012329,2]
[401330151,1768141839242,-587.08824565,0.00012329,2]
[401330152,1768141839252,-587.08824565,0.00012329,2]
[401330153,1768141839261,-587.08824565,0.00012329,2]
[401330154,1768141839270,-587.08824565,0.00012329,2]
[401330155,1768141839280,-587.08824565,0.00012329,2]
[401330156,1768141839291,-587.08824565,0.00012329,2]
[401330157,1768141839301,-587.08824565,0.00012329,2]
[401330158,1768141839310,-587.08824565,0.00012329,2]
[401330159,1768141839320,-587.08824565,0.00012329,2]
[401330160,1768141839330,-587.08824565,0.00012329,2]
[401330161,1768141839339,-587.08824565,0.00012329,2]
[401330162,1768141839348,-587.08824565,0.00012329,2]
[401330163,1768141839358,-587.08824565,0.00012329,2]
[401330164,1768141839367,-587.08824565,0.00012329,2]
[401330165,1768141839376,-587.08824565,0.00012329,2]
[401330166,1768141839385,-587.08824565,0.00012329,2]
[401330167,1768141839395,-587.08824565,0.00012329,2]
[401330168,1768141839404,-587.08824565,0.00012329,2]
[401330169,1768141839414,-587.08824565,0.00012329,2]
[401330170,1768141839423,-587.08824565,0.00012329,2]
[401330171,1768141839433,-587.08824565,0.00012329,2]
[401330172,1768141839443,-587.08824565,0.00012329,2]
[401330173,1768141839452,-587.08824565,0.00012329,2]
[401330174,1768141839462,-587.08824565,0.00012329,2]
[401330175,1768141839471,-587.08824565,0.00012329,2]
[401330176,1768141839480,-587.08824565,0.00012329,2]
[401330177,1768141839490,-587.08824565,0.00012329,2]
[401330178,1768141839500,-587.08824565,0.00012329,2]
[401330179,1768141839509,-587.08824565,0.00012329,2]
[401330180,1768141839519,-587.08824565,0.00012329,2]
[401330181,1768141839529,-587.08824565,0.00012329,2]
[401330182,1768141839539,-587.08824565,0.00012329,2]
[401330183,1768141839549,-587.08824565,0.00012329,2]
[401330184,1768141839559,-1578.12905389,0.00012329,2]
[401330185,1768141839568,-1578.12905389,0.00012329,2]
[401330186,1768141839578,-1578.12905389,0.00012329,2]
[401330187,1768141839587,-1578.12905389,0.00012329,2]
[401330188,1768141839596,-1578.12905389,0.00012329,2]
[401330189,1768141839606,-1578.12905389,0.00012329,2]
[401330190,1768141839615,-1578.12905389,0.00012329,2]
[401330191,1768141839625,-1578.12905389,0.00012329,2]
[401330192,1768141839636,-1578.12905389,0.00012329,2]
[401330193,1768141839647,-1578.12905389,0.00012329,2]
[401330194,1768141839658,-1578.12905389,0.00012329,2]
[401330195,1768141839667,-1578.12905389,0.00012329,2]
[401330196,1768141839679,-1578.12905389,0.00012329,2]
[401330197,1768141839690,-1578.12905389,0.00012329,2]
[401330198,1768141839701,-1578.12905389,0.00012329,2]
[401330199,1768141839713,-1578.12905389,0.00012329,2]
[401330200,1768141839726,-1578.12905389,0.00012329,2]
[401330201,1768141839739,-1578.12905389,0.00012329,2]
[401330202,1768141839750,-1578.12905389,0.00012329,2]
[401330204,1768141839759,-1578.12905389,0.00012329,2]
[401330205,1768141839769,-1578.12905389,0.00012329,2]
[401330206,1768141839779,-1578.12905389,0.00012329,2]
[401330207,1768141839790,-1578.12905389,0.00012329,2]
[401330208,1768141839804,-1578.12905389,0.00012329,2]
[401330209,1768141839814,-1578.12905389,0.00012329,2]
[401330210,1768141839823,-1578.12905389,0.00012329,2]
[401330211,1768141839832,-1578.12905389,0.00012329,2]
[401330212,1768141839841,-1578.12905389,0.00012329,2]
[401330213,1768141839851,-1578.12905389,0.00012329,2]
[401330214,1768141839861,-1578.12905389,0.00012329,2]
[401330215,1768141839870,-1578.12905389,0.00012329,2]
[401330216,1768141839880,-1702.00915492,0.00012329,2]
[401330217,1768141839888,-1702.00915492,0.00012329,2]
[401330218,1768141839897,-1702.00915492,0.00012329,2]
[401330219,1768141839907,-1702.00915492,0.00012329,2]
[401330220,1768141839917,-1702.00915492,0.00012329,2]
[401330221,1768141839927,-1702.00915492,0.00012329,2]
[401330222,1768141839936,-1702.00915492,0.00012329,2]
[401330223,1768141839945,-1702.00915492,0.00012329,2]
[401330224,1768141839955,-3449.65435594,0.00012392,2]
[401330225,1768141839964,-500.0,0.00012454,2]
[401330226,1768141839974,-500.0,0.00012454,2]
[401330227,1768141839985,-2309.0,0.00012454,2]
[401330228,1768141839994,-1000.0,0.00012476,2]
[401330229,1768141840004,-3521.30514597,0.000125,2]
[401330230,1768141840013,-500.0,0.00012591,2]
[401330231,1768141840023,-500.0,0.00012591,2]
[401330232,1768141840033,-2309.0,0.00012591,2]
[401330233,1768141840043,-303.76,0.00012603,2]
[401330234,1768141840052,-176.49,0.000127,2]
[401330235,1768141840061,-500.0,0.00012728,2]
[401330236,1768141840071,-623.15407208,0.00012728,2]
[401330238,1768141840081,-2309.0,0.00012728,2]
[401330239,1768141840090,-500.0,0.00012865,2]
[401330241,1768141840100,-2309.0,0.00012865,2]
[401330243,1768141840109,-303.78900327,0.00012877,2]
[401330245,1768141840118,-2000.0,0.00012999,2]
[401330247,1768141840128,-500.0,0.00013002,2]
[401330249,1768141840137,-2309.0,0.00013002,2]
[401330251,1768141840146,-341.6977369,0.00013066,2]
[401330253,1768141840156,-500.0,0.00013139,2]
[401330256,1768141840165,-2309.0,0.00013139,2]
[401330259,1768141840175,-176.49,0.000132,2]
[401330261,1768141840184,-500.0,0.00013273,2]
[401330263,1768141840193,-500.0,0.00013273,2]
[401330265,1768141840203,-500.0,0.00013273,2]
[401330267,1768141840212,-500.0,0.00013273,2]
[401330270,1768141840228,-500.0,0.00013273,2]
[401330272,1768141840243,-522.11051368,0.00013273,2]
[401330274,1768141840253,-500.0,0.00013273,2]
[401330277,1768141840264,-500.0,0.00013273,2]
[401330279,1768141840274,-500.0,0.00013273,2]
[401330281,1768141840283,-500.0,0.00013273,2]
[401330283,1768141840293,-500.0,0.00013273,2]
[401330285,1768141840302,-500.0,0.00013273,2]
[401330287,1768141840311,-501.65991965,0.00013273,2]
[401330289,1768141840320,-500.0,0.00013273,2]
[401330290,1768141840330,-500.0,0.00013273,2]
[401330292,1768141840339,-500.0,0.00013273,2]
[401330294,1768141840349,-500.0,0.00013273,2]
[401330296,1768141840359,-500.0,0.00013273,2]
[401330298,1768141840368,-500.0,0.00013273,2]
[401330301,1768141840378,-500.0,0.00013273,2]
[401330303,1768141840387,-500.0,0.00013273,2]
[401330305,1768141840396,-500.0,0.00013273,2]
[401330307,1768141840405,-500.0,0.00013273,2]
[401330308,1768141840415,-500.0,0.00013273,2]
[401330310,1768141840424,-500.0,0.00013273,2]
[401330313,1768141840434,-500.24269708,0.00013273,2]
[401330315,1768141840443,-500.0,0.00013273,2]
[401330317,1768141840453,-500.0,0.00013273,2]
[401330319,1768141840462,-500.0,0.00013273,2]
[401330320,1768141840471,-500.0,0.00013273,2]
[401330322,1768141840481,-500.0,0.00013273,2]
[401330324,1768141840490,-500.0,0.00013273,2]
[401330327,1768141840499,-500.0,0.00013273,2]
[401330329,1768141840508,-500.0,0.00013273,2]
[401330331,1768141840519,-500.0,0.00013273,2]
[401330333,1768141840529,-500.0,0.00013273,2]
[401330335,1768141840538,-500.0,0.00013273,2]
[401330337,1768141840547,-500.0,0.00013273,2]
[401330339,1768141840556,-500.0,0.00013273,2]
[401330341,1768141840565,-500.0,0.00013273,2]
[401330343,1768141840577,-500.0,0.00013273,2]
[401330345,1768141840587,-500.0,0.00013273,2]
[401330347,1768141840596,-500.0,0.00013273,2]
[401330349,1768141840604,-500.0,0.00013273,2]
[401330350,1768141840613,-500.0,0.00013273,2]
[401330353,1768141840623,-500.0,0.00013273,2]
[401330354,1768141840632,-500.0,0.00013273,2]
[401330356,1768141840642,-402.502339,0.00013273,2]
[401330359,1768141840652,-500.0,0.00013273,2]
[401330361,1768141840662,-500.0,0.00013273,2]
[401330362,1768141840672,-500.0,0.00013273,2]
[401330364,1768141840690,-500.0,0.00013273,2]
[401330367,1768141840707,-500.29461734,0.00013273,2]
[401330368,1768141840721,-500.0,0.00013273,2]
[401330370,1768141840732,-495.22027723,0.00013273,2]
[401330373,1768141840742,-500.0,0.00013273,2]
[401330374,1768141840758,-500.0,0.00013276,2]
[401330376,1768141840767,-2309.0,0.00013276,2]
[401330378,1768141840777,-1152.0,0.00013304,2]
[401330380,1768141840786,-500.0,0.00013413,2]
[401330382,1768141840796,-2309.0,0.00013413,2]
[401330385,1768141840806,-152.72644825,0.0001355,2]
[401330386,1768141840817,-2309.0,0.0001355,2]
[401330389,1768141840828,-500.0,0.0001355,2]
[401330390,1768141840837,-176.23516734,0.0001355,2]
[401330392,1768141840847,-500.0,0.0001355,2]
[401330394,1768141840861,-500.0,0.0001355,2]
[401330397,1768141840871,-500.0,0.0001355,2]
[401330398,1768141840880,-171.65605742,0.0001355,2]
[401330400,1768141840889,-300.0,0.00013673,2]
[401330402,1768141840900,-2309.0,0.00013687,2]
[401330405,1768141840909,-500.0,0.00013687,2]
[401330407,1768141840919,-503.05659276,0.00013687,2]
[401330409,1768141840932,-500.0,0.00013687,2]
[401330411,1768141840942,-598.52490689,0.00013687,2]
[401330413,1768141840951,-740.96,0.00013698,2]
[401330415,1768141840960,-740.96,0.00013698,2]
[401330417,1768141840969,-740.96,0.00013698,2]
[401330419,1768141840978,-740.96,0.00013698,2]
[401330421,1768141840987,-740.96,0.00013698,2]
[401330423,1768141840996,-740.96,0.00013698,2]
[401330425,1768141841006,-740.96,0.00013698,2]
[401330426,1768141841015,-740.96,0.00013698,2]
[401330428,1768141841024,-740.96,0.00013698,2]
[401330430,1768141841033,-740.96,0.00013698,2]
[401330432,1768141841043,-740.96,0.00013698,2]
[401330434,1768141841052,-740.96,0.00013698,2]
[401330436,1768141841062,-740.96,0.00013698,2]
[401330438,1768141841071,-740.96,0.00013698,2]
[401330440,1768141841080,-740.96,0.00013698,2]
[401330442,1768141841090,-740.96,0.00013698,2]
[401330444,1768141841099,-740.96,0.00013698,2]
[401330446,1768141841108,-740.96,0.00013698,2]
[401330448,1768141841117,-740.96,0.00013698,2]
[401330450,1768141841127,-740.96,0.00013698,2]
[401330452,1768141841136,-740.96,0.00013698,2]
[401330454,1768141841145,-740.96,0.00013698,2]
[401330456,1768141841154,-740.96,0.00013698,2]
[401330458,1768141841163,-740.99614657,0.00013698,2]
[401330460,1768141841172,-500.0,0.00013698,2]
[401330462,1768141841181,-500.0,0.00013698,2]
[401330464,1768141841190,-500.0,0.00013698,2]
[401330466,1768141841199,-500.0,0.00013698,2]
[401330468,1768141841208,-500.0,0.00013698,2]
[401330470,1768141841217,-500.0,0.00013698,2]
[401330472,1768141841227,-500.0,0.00013698,2]
[401330474,1768141841237,-534.57834013,0.00013698,2]
[401330476,1768141841247,-1000.0,0.00013698,2]
[401330478,1768141841255,-1000.0,0.00013698,2]
[401330480,1768141841265,-1000.0,0.00013698,2]
[401330482,1768141841274,-1000.0,0.00013698,2]
[401330484,1768141841283,-1000.0,0.00013698,2]
[401330486,1768141841292,-1000.0,0.00013698,2]
[401330488,1768141841301,-593.71236514,0.00013698,2]
[401330490,1768141841311,-500.0,0.00013698,2]
[401330492,1768141841320,-500.0,0.00013698,2]
[401330494,1768141841330,-500.0,0.00013698,2]
[401330496,1768141841339,-500.0,0.00013698,2]
[401330498,1768141841348,-500.0,0.00013698,2]
[401330500,1768141841357,-500.0,0.00013698,2]
[401330502,1768141841367,-500.0,0.00013698,2]
[401330504,1768141841376,-500.0,0.00013698,2]
[401330506,1768141841386,-500.0,0.00013698,2]
[401330508,1768141841395,-500.0,0.00013698,2]
[401330510,1768141841404,-500.0,0.00013698,2]
[401330525,1768141841530,-500.0,0.00013698,2]
[401330527,1768141841539,-500.0,0.00013698,2]
[401330529,1768141841549,-500.0,0.00013698,2]
[401330531,1768141841557,-500.0,0.00013698,2]
[401330533,1768141841566,-500.0,0.00013698,2]
[401330535,1768141841576,-500.0,0.00013698,2]
[401330537,1768141841585,-500.0,0.00013698,2]